fUSD/lending_fUSD_20240116
["ID","MTS","AMOUNT","RATE_DAILY","PERIOD"]
[311808662,1705420774106,-525.25459496,0.00049315,60]
[311808663,1705420774130,-528.67133061,0.00049315,60]
[311808664,1705420774158,-500.0,0.00049315,60]
[311808665,1705420774182,-571.1,0.00049315,60]
[311808666,1705420774206,-500.0,0.00049315,60]
[311808667,1705420774230,-500.0,0.00049315,60]
[311808668,1705420774255,-500.0,0.00049315,60]
[311808669,1705420774283,-500.0,0.00049315,60]
[311808670,1705420774307,-500.0,0.00049315,60]
[311808671,1705420774331,-500.0,0.00049315,60]
[311808672,1705420774356,-500.0,0.00049315,60]
[311808673,1705420774391,-518.95,0.00049315,60]
[311808674,1705420774416,-542.6,0.00049315,60]
[311808675,1705420774442,-645.11,0.00049315,60]
[311808676,1705420774468,-500.0,0.00049315,60]
[311808677,1705420774493,-500.0,0.00049315,60]
[311808678,1705420774517,-508.12271958,0.00049315,60]
[311808679,1705420774545,-500.0,0.00049315,60]
[311808680,1705420774572,-500.0,0.00049315,60]
[311808681,1705420774618,-500.0,0.00049315,60]
[311808682,1705420774648,-708.62,0.00049315,60]
[311808683,1705420774673,-500.0,0.00049315,60]
[311808684,1705420774697,-500.0,0.00049315,60]
[311808685,1705420774722,-500.0,0.00049315,60]
[311808686,1705420774749,-2082.65,0.00049315,60]
[311808687,1705420774773,-500.0,0.00049315,60]
[311808688,1705420774797,-500.0,0.00049315,60]
[311808689,1705420774821,-500.0,0.00049315,60]
[311808690,1705420774845,-500.0,0.00049315,60]
[311808691,1705420774871,-518.24244666,0.00049315,60]
[311808692,1705420774896,-500.0,0.00049315,60]
[311808693,1705420774921,-500.0,0.00049315,60]
[311808694,1705420774945,-500.0,0.00049315,60]
[311808695,1705420774970,-500.0,0.00049315,60]
[311808696,1705420775261,-500.0,0.00049315,60]
[311808697,1705420775289,-500.0,0.00049315,60]
[311808698,1705420775315,-839.09,0.00049315,60]
[311808699,1705420775341,-500.0,0.00049315,60]
[311808700,1705420775367,-500.0,0.00049315,60]
[311808701,1705420775392,-506.81814796,0.00049315,60]
[311808702,1705420775416,-500.0,0.00049315,60]
[311808703,1705420775442,-500.0,0.00049315,60]
[311808704,1705420775467,-500.0,0.00049315,60]
[311808705,1705420775494,-500.0,0.00049315,60]
[311808706,1705420775520,-570.34,0.00049315,60]
[311808707,1705420775548,-500.0,0.00049315,60]
[311808708,1705420775573,-500.0,0.00049315,60]
[311808709,1705420775599,-500.0,0.00049315,60]
[311808710,1705420775625,-503.73444507,0.00049315,60]
[311808711,1705420775652,-681.45,0.00049315,60]
[311808712,1705420775678,-500.0,0.00049315,60]
[311808713,1705420775705,-500.0,0.00049315,60]
[311808714,1705420775732,-506.18930117,0.00049315,60]
[311808715,1705420775760,-203.34,0.00049315,60]
[311808716,1705420775787,-507.27369102,0.00049315,60]
[311808717,1705420775813,-500.0,0.00049315,60]
[311808718,1705420775838,-500.0,0.00049315,60]
[311808719,1705420775863,-440.58770349,0.00049315,60]
[311808720,1705420775890,-500.0,0.00049315,60]
[311808721,1705420775916,-506.40822427,0.00049315,60]
[311808722,1705420775941,-507.92449093,0.00049315,60]
[311808723,1705420775966,-500.0,0.00049315,60]
[311808724,1705420775995,-502.3,0.00049315,60]
[311808725,1705420776020,-523.10236883,0.00049315,60]
[311808726,1705420776050,-500.0,0.00049315,60]
[311808727,1705420776089,-504.69389896,0.00049315,60]
[311808728,1705420776115,-575.05,0.00049315,60]
[311808729,1705420776142,-523.06407422,0.00049315,60]
[311808730,1705420776168,-500.0,0.00049315,60]
[311808731,1705420776193,-500.0,0.00049315,60]
[311808732,1705420776219,-500.0,0.00049315,60]
[311808733,1705420776245,-500.0,0.00049315,60]
[311808734,1705420776270,-583.47,0.00049315,60]
[311808735,1705420776296,-567.27,0.00049315,60]
[311808736,1705420776321,-500.0,0.00049315,60]
[311808737,1705420776348,-504.99247864,0.00049315,60]
[311808738,1705420776373,-500.0,0.00049315,60]
[311808739,1705420776397,-500.0,0.00049315,60]
[311808740,1705420776421,-504.55546967,0.00049315,60]
[311808741,1705420776445,-639.47,0.00049315,60]
[311808742,1705420776469,-500.0,0.00049315,60]
[311808743,1705420776494,-1002.09,0.00049315,60]
[311808744,1705420776519,-500.0,0.00049315,60]
[311808745,1705420776546,-500.0,0.00049315,60]
[311808746,1705420776570,-783.19,0.00049315,60]
[311808747,1705420776595,-501.10225025,0.00049315,60]
[311808748,1705420776621,-1859.8,0.00049315,60]
[311808749,1705420776646,-500.0,0.00049315,60]
[311808750,1705420776671,-1258.46,0.00049315,60]
[311808751,1705420776696,-500.0,0.00049315,60]
[311808752,1705420776722,-500.0,0.00049315,60]
[311808753,1705420776749,-500.0,0.00049315,60]
[311808754,1705420776776,-500.0,0.00049315,60]
[311808755,1705420776801,-500.0,0.00049315,60]
[311808756,1705420776826,-500.0,0.00049315,60]
[311808757,1705420776852,-3941.67,0.00049315,60]
[311808758,1705420776878,-500.0,0.00049315,60]
[311808759,1705420776903,-629.0,0.00049315,60]
[311808760,1705420776928,-500.0,0.00049315,60]
[311808761,1705420776952,-502.39901173,0.00049315,60]
[311808762,1705420776976,-500.0,0.00049315,60]
[311808763,1705420777208,-500.0,0.00049315,60]
[311808764,1705420777234,-500.0,0.00049315,60]
[311808765,1705420777259,-500.0,0.00049315,60]
[311808766,1705420777288,-500.0,0.00049315,60]
[311808767,1705420777325,-500.0,0.00049315,60]
[311808768,1705420777351,-3806.63,0.00049315,60]
[311808769,1705420777375,-500.0,0.00049315,60]
[311808770,1705420777400,-500.0,0.00049315,60]
[311808771,1705420777424,-500.0,0.00049315,60]
[311808772,1705420777449,-504.71192865,0.00049315,60]
[311808773,1705420777488,-526.37,0.00049315,60]
[311808774,1705420777529,-544.47,0.00049315,60]
[311808775,1705420777563,-835.77,0.00049315,60]
[311808776,1705420777590,-500.0,0.00049315,60]
[311808777,1705420777616,-500.0,0.00049315,60]
[311808778,1705420777640,-500.0,0.00049315,60]
[311808779,1705420777663,-500.0,0.00049315,60]
[311808780,1705420777687,-504.70063099,0.00049315,60]
[311808781,1705420777711,-521.32,0.00049315,60]
[311808782,1705420777736,-477.37672572,0.00049315,60]
[311808783,1705420777758,-500.0,0.00049315,60]
[311808784,1705420777782,-500.0,0.00049315,60]
[311808785,1705420777806,-500.0,0.00049315,60]
[311808786,1705420777829,-500.0,0.00049315,60]
[311808787,1705420777853,-864.93,0.00049315,60]
[311808788,1705420777879,-500.0,0.00049315,60]
[311808789,1705420777903,-673.48,0.00049315,60]
[311808790,1705420777927,-1928.92,0.00049315,60]
[311808791,1705420777950,-500.0,0.00049315,60]
[311808792,1705420777974,-517.60839303,0.00049315,60]
[311808793,1705420778001,-500.0,0.00049315,60]
[311808794,1705420778025,-845.25,0.00049315,60]
[311808795,1705420778049,-500.0,0.00049315,60]
[311808796,1705420778074,-500.0,0.00049315,60]
[311808797,1705420778100,-527.33,0.00049315,60]
[311808798,1705420778123,-500.0,0.00049315,60]
[311808799,1705420778147,-500.0,0.00049315,60]
[311808800,1705420778171,-500.0,0.00049315,60]
[311808801,1705420778396,-564.04773182,0.00049315,60]
[311808802,1705420778420,-500.0,0.00049315,60]
[311808803,1705420778443,-500.0,0.00049315,60]
[311808804,1705420778467,-500.0,0.00049315,60]
[311808805,1705420778492,-658.65,0.00049315,60]
[311808806,1705420778515,-500.0,0.00049315,60]
[311808807,1705420778544,-2559.49,0.00049315,60]
[311808808,1705420778568,-500.0,0.00049315,60]
[311808809,1705420778591,-827.42,0.00049315,60]
[311808810,1705420778616,-500.0,0.00049315,60]
[311808811,1705420778640,-500.0,0.00049315,60]
[311808812,1705420778664,-500.0,0.00049315,60]
[311808813,1705420778688,-500.0,0.00049315,60]
[311808814,1705420778712,-788.05,0.00049315,60]
[311808815,1705420778738,-1494.61,0.00049315,60]
[311808816,1705420778763,-500.0,0.00049315,60]
[311808817,1705420778787,-500.0,0.00049315,60]
[311808818,1705420778811,-500.0,0.00049315,60]
[311808819,1705420778838,-544.23,0.00049315,60]
[311808820,1705420778863,-500.0,0.00049315,60]
[311808821,1705420778887,-500.0,0.00049315,60]
[311808822,1705420778913,-500.0,0.00049315,60]
[311808823,1705420778937,-1658.17,0.00049315,60]
[311808824,1705420778961,-500.0,0.00049315,60]
[311808825,1705420778985,-1020.56102939,0.00049315,60]
[311808826,1705420779010,-1821.71,0.00049315,60]
[311808827,1705420779034,-16055.35,0.00049315,60]
[311808828,1705420779057,-500.0,0.00049315,60]
[311808829,1705420779082,-509.89254242,0.00049315,60]
[311808830,1705420779106,-500.0,0.00049315,60]
[311808831,1705420779131,-500.0,0.00049315,60]
[311808832,1705420779156,-883.85,0.00049315,60]
[311808833,1705420779179,-500.0,0.00049315,60]
[311808834,1705420779206,-251.2369831,0.00049315,60]
[311808835,1705420779229,-520.79,0.00049315,60]
[311808836,1705420779254,-504.33063749,0.00049315,60]
[311808837,1705420779278,-500.0,0.00049315,60]
[311808838,1705420779302,-649.18,0.00049315,60]
[311808839,1705420779326,-500.0,0.00049315,60]
[311808840,1705420779350,-500.0,0.00049315,60]
[311808841,1705420779374,-545.65,0.00049315,60]
[311808842,1705420779399,-892.09,0.00049315,60]
[311808843,1705420779421,-1126.17,0.00049315,60]
[311808844,1705420779442,-500.0,0.00049315,60]
[311808845,1705420779464,-513.68,0.00049315,60]
[311808846,1705420779485,-500.0,0.00049315,60]
[311808847,1705420779512,-500.0,0.00049315,60]
[311808848,1705420779537,-500.0,0.00049315,60]
[311808849,1705420779565,-500.0,0.00049315,60]
[311808850,1705420779590,-1213.43,0.00049315,60]
[311808851,1705420779615,-500.0,0.00049315,60]
[311808852,1705420779640,-683.8,0.00049315,60]
[311808853,1705420779663,-500.0,0.00049315,60]
[311808854,1705420779687,-2409.46,0.00049315,60]
[311808855,1705420779714,-500.0,0.00049315,60]
[311808856,1705420779739,-730.45,0.00049315,60]
[311808857,1705420779764,-880.77,0.00049315,60]
[311808858,1705420779788,-500.0,0.00049315,60]
[311808859,1705420779812,-503.15978741,0.00049315,60]
[311808860,1705420779836,-500.0,0.00049315,60]
[311808861,1705420779861,-500.0,0.00049315,60]
[311808862,1705420779886,-816.27,0.00049315,60]
[311808863,1705420779911,-864.06,0.00049315,60]
[311808864,1705420779936,-500.0,0.00049315,60]
[311808865,1705420779960,-500.0,0.00049315,60]
[311808866,1705420779984,-509.27,0.00049315,60]
[311808867,1705420780010,-500.0,0.00049315,60]
[311808868,1705420780034,-3071.74,0.00049315,60]
[311808869,1705420780058,-500.0,0.00049315,60]
[311808870,1705420780083,-4590.32,0.00049315,60]
[311808871,1705420780108,-500.0,0.00049315,60]
[311808872,1705420780132,-720.02,0.00049315,60]
[311808873,1705420780158,-967.66,0.00049315,60]
[311808874,1705420780187,-500.0,0.00049315,60]
[311808875,1705420780212,-2548.51,0.00049315,60]
[311808876,1705420780241,-500.0,0.00049315,60]
[311808877,1705420780265,-500.0,0.00049315,60]
[311808878,1705420780290,-618.82,0.00049315,60]
[311808879,1705420780315,-788.09,0.00049315,60]
[311808880,1705420780341,-3039.62,0.00049315,60]
[311808881,1705420780370,-954.34,0.00049315,60]
[311808882,1705420780398,-500.0,0.00049315,60]
[311808883,1705420780428,-500.0,0.00049315,60]
[311808884,1705420780453,-505.046589,0.00049315,60]
[311808885,1705420780477,-2094.16,0.00049315,60]
[311808886,1705420780505,-794.29,0.00049315,60]
[311808887,1705420780530,-500.0,0.00049315,60]
[311808888,1705420780558,-1106.18,0.00049315,60]
[311808889,1705420780582,-710.35,0.00049315,60]
[311808890,1705420780606,-1653.19,0.00049315,60]
[311808891,1705420780630,-842.32,0.00049315,60]
[311808892,1705420780654,-500.0,0.00049315,60]
[311808893,1705420780679,-1071.45,0.00049315,60]
[311808894,1705420780703,-500.0,0.00049315,60]
[311808895,1705420780727,-500.0,0.00049315,60]
[311808896,1705420780754,-2332.39,0.00049315,60]
[311808897,1705420780777,-1662.92,0.00049315,60]
[311808898,1705420780801,-693.71,0.00049315,60]
[311808899,1705420780824,-500.0,0.00049315,60]
[311808900,1705420780850,-1156.59,0.00049315,60]
[311808901,1705420780874,-752.61,0.00049315,60]
[311808902,1705420780902,-500.0,0.00049315,60]
[311808903,1705420780926,-906.68,0.00049315,60]
[311808904,1705420780950,-500.0,0.00049315,60]
[311808905,1705420780974,-500.0,0.00049315,60]
[311808906,1705420781207,-500.0,0.00049315,60]
[311808907,1705420781231,-500.0,0.00049315,60]
[311808908,1705420781256,-515.69,0.00049315,60]
[311808909,1705420781280,-500.0,0.00049315,60]
[311808910,1705420781303,-500.0,0.00049315,60]
[311808911,1705420781329,-1781.79,0.00049315,60]
[311808912,1705420781354,-5000.0,0.00049315,60]
[311808913,1705420781380,-500.0,0.00049315,60]
[311808914,1705420781405,-1392.8,0.00049315,60]
[311808915,1705420781429,-500.0,0.00049315,60]
[311808916,1705420781454,-500.0,0.00049315,60]
[311808917,1705420781479,-500.0,0.00049315,60]
[311808918,1705420781505,-705.92,0.00049315,60]
[311808919,1705420781531,-1059.2,0.00049315,60]
[311808920,1705420781557,-1181.3,0.00049315,60]
[311808921,1705420781581,-500.0,0.00049315,60]
[311808922,1705420781605,-615.03199737,0.00049315,60]
[311808923,1705420781632,-500.0,0.00049315,60]
[311808924,1705420781659,-984.62,0.00049315,60]
[311808925,1705420781686,-500.0,0.00049315,60]
[311808926,1705420781711,-524.31,0.00049315,60]
[311808927,1705420781737,-500.0,0.00049315,60]
[311808928,1705420781764,-570.49,0.00049315,60]
[311808929,1705420781789,-636.66490977,0.00049315,60]
[311808930,1705420781814,-600.48,0.00049315,60]
[311808931,1705420781840,-250.0,0.00049315,60]
[311808932,1705420781878,-362.28007638,0.00049315,60]
[311808933,1705420781912,-500.0,0.00049315,60]
[311808934,1705420781938,-505.32533382,0.00049315,60]
[311808935,1705420781964,-2203.44,0.00049315,60]
[311808936,1705420781989,-500.0,0.00049315,60]
[311808937,1705420782016,-534.96,0.00049315,60]
[311808938,1705420782041,-500.0,0.00049315,60]
[311808939,1705420782067,-733.67,0.00049315,60]
[311808940,1705420782091,-569.12,0.00049315,60]
[311808941,1705420782116,-2828.05,0.00049315,60]
[311808942,1705420782142,-1158.42,0.00049315,60]
[311808943,1705420782167,-500.0,0.00049315,60]
[311808944,1705420782194,-1180.62,0.00049315,60]
[311808945,1705420782219,-1133.55,0.00049315,60]
[311808946,1705420782247,-500.0,0.00049315,60]
[311808947,1705420782271,-635.21,0.00049315,60]
[311808948,1705420782295,-505.26,0.00049315,60]
[311808949,1705420782319,-1182.75,0.00049315,60]
[311808950,1705420782345,-10320.95,0.00049315,60]
[311808951,1705420782370,-654.42,0.00049315,60]
[311808952,1705420782400,-500.0,0.00049315,60]
[311808953,1705420782425,-500.0,0.00049315,60]
[311808954,1705420782450,-830.26,0.00049315,60]
[311808955,1705420782476,-833.75,0.00049315,60]
[311808956,1705420782502,-500.0,0.00049315,60]
[311808957,1705420782531,-1214.42,0.00049315,60]
[311808958,1705420782557,-500.0,0.00049315,60]
[311808959,1705420782581,-500.0,0.00049315,60]
[311808960,1705420782607,-12802.26,0.00049315,60]
[311808961,1705420782634,-500.0,0.00049315,60]
[311808962,1705420782659,-628.8,0.00049315,60]
[311808963,1705420782684,-500.0,0.00049315,60]
[311808964,1705420782710,-847.18,0.00049315,60]
[311808965,1705420782735,-942.53,0.00049315,60]
[311808966,1705420782763,-2006.03,0.00049315,60]
[311808967,1705420782788,-500.0,0.00049315,60]
[311808968,1705420782813,-956.71,0.00049315,60]
[311808969,1705420782838,-500.0,0.00049315,60]
[311808970,1705420782863,-500.0,0.00049315,60]
[311808971,1705420782888,-1421.63,0.00049315,60]
[311808972,1705420782913,-500.0,0.00049315,60]
[311808973,1705420782938,-924.97,0.00049315,60]
[311808974,1705420782962,-980.72,0.00049315,60]
[311808975,1705420782987,-1433.74,0.00049315,60]
[311808976,1705420783014,-500.0,0.00049315,60]
[311808977,1705420783038,-500.0,0.00049315,60]
[311808978,1705420783063,-748.84,0.00049315,60]
[311808979,1705420783087,-4195.36,0.00049315,60]
[311808980,1705420783112,-500.0,0.00049315,60]
[311808981,1705420783138,-500.0,0.00049315,60]
[311808982,1705420783164,-1142.56,0.00049315,60]
[311808983,1705420783188,-808.49,0.00049315,60]
[311808984,1705420783213,-1013.78,0.00049315,60]
[311808985,1705420783237,-923.58,0.00049315,60]
[311808986,1705420783262,-811.25,0.00049315,60]
[311808987,1705420783286,-907.1,0.00049315,60]
[311808988,1705420783310,-661.3,0.00049315,60]
[311808989,1705420783335,-701.52,0.00049315,60]
[311808990,1705420783359,-500.0,0.00049315,60]
[311808991,1705420783394,-1133.66,0.00049315,60]
[311808992,1705420783418,-2835.06,0.00049315,60]
[311808993,1705420783456,-500.0,0.00049315,60]
[311808994,1705420783483,-500.0,0.00049315,60]
[311808995,1705420783510,-534.3,0.00049315,60]
[311808996,1705420783536,-1807.37,0.00049315,60]
[311808997,1705420783560,-691.21,0.00049315,60]
[311808998,1705420783592,-738.52,0.00049315,60]
[311808999,1705420783636,-500.0,0.00049315,60]
[311809000,1705420783662,-1266.22,0.00049315,60]
[311809001,1705420783688,-551.56,0.00049315,60]
[311809002,1705420783725,-2172.65,0.00049315,60]
[311809003,1705420783749,-794.87,0.00049315,60]
[311809004,1705420783774,-1406.11,0.00049315,60]
[311809005,1705420783801,-1021.25,0.00049315,60]
[311809006,1705420783827,-1618.3,0.00049315,60]
[311809007,1705420783852,-500.0,0.00049315,60]
[311809008,1705420783876,-693.09,0.00049315,60]
[311809009,1705420783900,-500.0,0.00049315,60]
[311809010,1705420784121,-730.54,0.00049315,60]
[311809011,1705420784151,-1548.36,0.00049315,60]
[311809012,1705420784176,-502.65493119,0.00049315,60]
[311809013,1705420784200,-3954.39,0.00049315,60]
[311809014,1705420784224,-500.0,0.00049315,60]
[311809015,1705420784248,-1112.87,0.00049315,60]
[311809016,1705420784274,-1977.0,0.00049315,60]
[311809017,1705420784298,-2179.4,0.00049315,60]
[311809018,1705420784322,-500.0,0.00049315,60]
[311809019,1705420784350,-1157.56,0.00049315,60]
[311809020,1705420784374,-500.0,0.00049315,60]
[311809021,1705420784397,-500.0,0.00049315,60]
[311809022,1705420784422,-500.0,0.00049315,60]
[311809023,1705420784446,-847.04,0.00049315,60]
[311809024,1705420784471,-668.66,0.00049315,60]
[311809025,1705420784497,-6977.38,0.00049315,60]
[311809026,1705420784521,-559.67,0.00049315,60]
[311809027,1705420784549,-1024.74,0.00049315,60]
[311809028,1705420784574,-2947.58,0.00049315,60]
[311809029,1705420784599,-1181.81,0.00049315,60]
[311809030,1705420784625,-500.0,0.00049315,60]
[311809031,1705420784650,-595.44,0.00049315,60]
[311809032,1705420784676,-500.0,0.00049315,60]
[311809033,1705420784701,-500.0,0.00049315,60]
[311809034,1705420784725,-610.24136925,0.00049315,60]
[311809035,1705420784751,-1550.21,0.00049315,60]
[311809036,1705420784776,-1644.79,0.00049315,60]
[311809037,1705420784801,-500.0,0.00049315,60]
[311809038,1705420784827,-500.0,0.00049315,60]
[311809039,1705420784852,-595.35872587,0.00049315,60]
[311809040,1705420784877,-551.15,0.00049315,60]
[311809041,1705420784902,-500.0,0.00049315,60]
[311809042,1705420784927,-708.27,0.00049315,60]
[311809043,1705420784952,-500.0,0.00049315,60]
[311809044,1705420784977,-4362.45,0.00049315,60]
[311809045,1705420785002,-719.44,0.00049315,60]
[311809046,1705420785026,-500.0,0.00049315,60]
[311809047,1705420785050,-500.0,0.00049315,60]
[311809048,1705420785074,-500.0,0.00049315,60]
[311809049,1705420785099,-500.66230393,0.00049315,60]
[311809050,1705420785130,-500.0,0.00049315,60]
[311809051,1705420785156,-500.0,0.00049315,60]
[311809052,1705420785183,-500.0,0.00049315,60]
[311809053,1705420785210,-500.0,0.00049315,60]
[311809054,1705420785239,-647.91,0.00049315,60]
[311809055,1705420785264,-500.0,0.00049315,60]
[311809056,1705420785290,-5871.53,0.00049315,60]
[311809057,1705420785318,-3487.76,0.00049315,60]
[311809058,1705420785343,-500.0,0.00049315,60]
[311809059,1705420785368,-1581.05,0.00049315,60]
[311809060,1705420785393,-3325.66,0.00049315,60]
[311809061,1705420785418,-500.0,0.00049315,60]
[311809062,1705420785442,-2691.54,0.00049315,60]
[311809063,1705420785467,-542.56,0.00049315,60]
[311809064,1705420785491,-850.52,0.00049315,60]
[311809065,1705420785517,-5760.07,0.00049315,60]
[311809066,1705420785544,-8349.45,0.00049315,60]
[311809067,1705420785568,-500.0,0.00049315,60]
[311809068,1705420785594,-2378.82,0.00049315,60]
[311809069,1705420785620,-509.96,0.00049315,60]
[311809070,1705420785646,-568.93,0.00049315,60]
[311809071,1705420785670,-500.0,0.00049315,60]
[311809072,1705420785694,-735.83,0.00049315,60]
[311809073,1705420785720,-558.13,0.00049315,60]
[311809074,1705420785745,-745.23,0.00049315,60]
[311809075,1705420785769,-571.61,0.00049315,60]
[311809076,1705420785793,-6045.42,0.00049315,60]
[311809077,1705420785818,-1253.86,0.00049315,60]
[311809078,1705420785841,-500.0,0.00049315,60]
[311809079,1705420785865,-522.91,0.00049315,60]
[311809080,1705420785888,-500.0,0.00049315,60]
[311809081,1705420785912,-2524.81,0.00049315,60]
[311809082,1705420785936,-860.71,0.00049315,60]
[311809083,1705420785960,-1034.83,0.00049315,60]
[311809084,1705420785983,-400.0,0.00049315,120]
[311809085,1705420786819,151.0,0.00044836,120]
[311809086,1705420787071,151.0,0.00044836,120]
[311809087,1705420789181,696.53,0.00049315,60]
[311809088,1705420789597,730.38214306,0.00021,2]
[311809089,1705420789633,500.0,0.00049315,60]
[311809090,1705420789662,548.35,0.00049315,60]
[311809091,1705420789748,1589.31,0.00049315,60]
[311809092,1705420790720,500.0,0.00049315,60]
[311809093,1705420791750,500.0,0.00049315,60]
[311809094,1705420791865,742.36,0.00049315,60]
[311809095,1705420792210,757.65,0.00049315,60]
[311809096,1705420792693,500.0,0.00049315,60]
[311809097,1705420794068,200.0,0.00021367,2]
[311809098,1705420794893,1132.08,0.00049315,60]
[311809099,1705420796971,750.55,0.00049315,60]
[311809100,1705420799033,500.0,0.00049315,60]
[311809101,1705420800330,680.76,0.00049315,60]
[311809102,1705420801059,2367.68,0.000435,32]
[311809103,1705420801092,510.20923342,0.00016132,2]
[311809104,1705420805928,200.0,0.00021379,2]
[311809105,1705420811605,725.92916568,0.00021,2]
[311809106,1705420816228,1891.70798367,0.00020165,2]
[311809107,1705420816789,401.83169125,0.0001956,2]
[311809108,1705420819110,26441.85523466,0.00020165,2]
[311809109,1705420873068,7417.37716852,0.00020165,2]
[311809110,1705420875916,2502.26225514,0.00022,2]
[311809111,1705420895736,2502.26225514,0.00022,2]
[311809112,1705420899057,3797.51003813,0.00020165,2]
[311809113,1705420913693,2502.26225514,0.00022,2]
[311809114,1705420930188,150.0,0.00022,2]
[311809115,1705420931717,2502.26225514,0.00022,2]
[311809116,1705420949709,2502.26225514,0.00022,2]
[311809117,1705420969708,2502.26225514,0.00022,2]
[311809118,1705420971998,250.0,0.00021357,2]
[311809119,1705420982385,231.93292492,0.00022001,2]
[311809120,1705420985717,2502.26225514,0.00022,2]
[311809121,1705420997231,10000.0,0.0002222,14]
[311809122,1705421003712,2502.26225514,0.00022,2]
[311809123,1705421005822,201.76,0.00019474,2]
[311809124,1705421006073,201.76,0.00021738,2]
[311809125,1705421015002,269.92081352,0.00022001,2]
[311809126,1705421016331,327.01068005,0.00022001,2]
[311809127,1705421021752,2502.26225514,0.00022,2]
[311809128,1705421040255,2502.26225514,0.00022001,2]
[311809129,1705421047167,231.93292492,0.00022001,2]
[311809130,1705421061983,2502.26225514,0.00022001,2]
[311809131,1705421079718,2502.26225514,0.00022001,2]
[311809132,1705421082941,314.18551676,0.00022001,2]
[311809133,1705421097780,2502.26225514,0.00022001,2]
[311809134,1705421108311,151.15,0.00021396,2]
[311809135,1705421115727,2502.26225514,0.00022001,2]
[311809136,1705421117413,231.93292492,0.00022001,2]
[311809137,1705421130196,166.55,0.0002161,2]
[311809150,1705421135658,153.54,0.00021396,2]
[311809151,1705421135742,2502.26225514,0.00022001,2]
[311809152,1705421153927,200.0,0.00021396,2]
[311809153,1705421161316,314.18551676,0.00022001,2]
[311809154,1705421161781,2502.26225514,0.00022001,2]
[311809155,1705421177920,2502.26225514,0.00022001,2]
[311809156,1705421193905,231.93292492,0.00022001,2]
[311809157,1705421199744,2502.26225514,0.00022001,2]
[311809158,1705421200276,406.17,0.00021402,2]
[311809159,1705421217748,2502.26225514,0.00022001,2]
[311809174,1705421233758,485.08346979,0.00022001,2]
[311809175,1705421252284,167.66,0.00021421,2]
[311809176,1705421252608,840.0,0.00021421,2]
[311809211,1705421278421,231.93292492,0.00022001,2]
[311809212,1705421284229,177.43,0.00021692,2]
[311809213,1705421284444,177.43,0.00021751,2]
[311809214,1705421284649,177.43,0.00021811,2]
[311809215,1705421284967,177.43,0.0002187,2]
[311809216,1705421285202,177.43,0.0002193,2]
[311809217,1705421285413,177.43,0.00021989,2]
[311809218,1705421333888,23890.0,0.00021391,2]
[311809219,1705421362910,231.93292492,0.00022001,2]
[311809220,1705421381943,2000.0,0.00021404,2]
[311809221,1705421383395,352.34,0.00022,2]